bitfinex/quotes_ETHUSD_20250822
["timestamp","ask_amount","ask_price","bid_price","bid_amount"]
[1755846445336,0.02,4319.8,4318.7,14.73622117]
[1755846446932,1e-08,4318.8,4318.7,14.73622117]
[1755846448212,1e-08,4318.8,4318.7,21.77912117]
[1755846449349,1e-08,4319.8,4319.7,2.97497557]
[1755846449652,1e-08,4319.8,4319.7,34.77343295]
[1755846449948,1e-08,4319.8,4319.7,35.0355062]
[1755846450154,1e-08,4319.8,4319.7,35.1282742]
[1755846451255,0.02,4320.8,4320.7,2.97443978]
[1755846451552,0.02,4320.8,4320.7,18.28116233]
[1755846451852,0.02,4320.8,4320.7,20.36908499]
[1755846452674,0.02,4320.8,4320.7,20.68448499]
[1755846452870,0.0922,4322.1,4321.7,2.97390425]
[1755846453171,0.119,4321.8,4321.7,8.67704329]
[1755846453351,0.119,4321.8,4321.7,8.65390425]
[1755846453555,0.119,4321.8,4321.7,8.65490425]
[1755846453872,0.02,4321.8,4321.7,13.85505034]
[1755846454067,0.02,4321.8,4321.7,14.30895034]
[1755846454233,0.02,4321.8,4321.7,20.9115285]
[1755846458251,0.02,4321.8,4321.7,10.40895034]
[1755846458471,0.02,4321.8,4321.7,14.30795034]
[1755846460182,0.02,4321.8,4321.7,10.40895034]
[1755846460478,0.02,4321.8,4321.7,9.63965034]
[1755846460674,0.02,4321.8,4321.7,13.53665034]
[1755846461088,0.1676,4321.8,4321.7,8.10690425]
[1755846461243,0.2118,4321.8,4321.7,8.10690425]
[1755846461571,0.1676,4321.8,4321.7,8.10690425]
[1755846461773,0.2118,4321.8,4321.7,8.10690425]
[1755846462158,0.2118,4321.8,4321.7,8.76690425]
[1755846462747,0.1676,4321.8,4321.7,8.76690425]
[1755846462940,0.1676,4321.8,4321.7,9.87499252]
[1755846463141,0.02,4321.8,4321.7,13.16669252]
[1755846463346,0.02,4321.8,4321.7,13.59739252]
[1755846463789,0.02,4321.8,4321.7,12.87499252]
[1755846464746,0.02,4321.8,4321.7,17.4566925]
[1755846465049,0.02,4321.8,4321.7,17.1649925]
[1755846465378,0.0715,4321.8,4321.7,13.2689925]
[1755846465572,0.02,4321.8,4321.7,17.1649925]
[1755846465786,0.0715,4321.8,4321.7,17.1649925]
[1755846465971,0.02,4321.8,4321.7,12.87499252]
[1755846467992,0.02,4321.8,4321.7,13.59739252]
[1755846468784,1e-08,4321.8,4321.7,13.59739252]
[1755846470566,1e-08,4321.8,4321.7,13.69011952]
[1755846471378,1e-08,4321.8,4321.7,26.90364352]
[1755846471565,1e-08,4321.8,4321.7,23.75422652]
[1755846471770,0.0922,4323.2,4321.7,23.75422652]
[1755846471771,0.02,4324.8,4322.7,0.00200001]
[1755846471960,0.02,4324.8,4324.7,2.31229911]
[1755846472158,0.02,4325.8,4324.7,2.31229911]
[1755846472159,0.02,4325.8,4325.7,2.31176456]
[1755846472393,0.1692,4325.8,4325.7,8.79996456]
[1755846472760,0.1692,4325.8,4325.7,8.82496456]
[1755846472964,0.02,4325.8,4325.7,8.82496456]
[1755846473163,0.119,4325.8,4325.7,5.98064515]
[1755846473397,0.02,4325.8,4325.7,8.82596456]
[1755846474094,0.02,4325.8,4325.7,8.91916456]
[1755846474676,0.02,4325.8,4325.7,11.82596456]
[1755846474873,0.02,4325.8,4325.7,28.92687272]
[1755846475465,0.02,4325.8,4325.7,14.05534515]
[1755846476999,0.02,4325.8,4325.7,14.22688694]
[1755846477400,0.02,4325.8,4325.7,9.54548694]
[1755846477564,0.119,4325.8,4325.7,13.41028694]
[1755846477968,0.119,4325.8,4325.7,9.45228694]
[1755846478169,0.119,4325.8,4325.7,8.99450635]
[1755846478378,0.119,4325.8,4325.7,8.99350635]
[1755846478583,0.119,4325.8,4325.7,5.03850635]
[1755846478982,0.119,4325.8,4325.7,4.37850635]
[1755846479185,0.119,4325.8,4325.7,8.33350635]
[1755846479501,0.2122,4325.8,4325.7,6.02174179]
[1755846479902,0.2122,4325.8,4325.7,4.37850635]
[1755846480102,0.2122,4325.8,4325.7,8.33350635]
[1755846480305,0.2122,4325.8,4325.7,2.06674179]
[1755846480505,0.2122,4325.8,4325.7,1.95154179]
[1755846480706,0.2122,4325.8,4325.7,5.90554179]
[1755846481002,0.119,4325.8,4325.7,5.90554179]
[1755846481207,0.119,4325.8,4325.7,1.95154179]
[1755846481414,0.119,4325.8,4325.7,5.90554179]
[1755846481708,0.119,4325.8,4325.7,9.1542463]
[1755846481907,0.02,4325.8,4325.7,9.1542463]
[1755846482489,0.119,4325.8,4325.7,9.1542463]
[1755846482805,0.02,4325.8,4325.7,10.1059463]
[1755846483108,0.119,4325.8,4325.7,9.8152463]
[1755846483320,0.119,4325.8,4325.7,8.99350635]
[1755846483530,0.119,4325.8,4325.7,5.06674179]
[1755846483822,0.2122,4325.8,4325.7,5.06674179]
[1755846483978,0.2122,4325.8,4325.7,1.95154179]
[1755846484180,0.2122,4325.8,4325.7,5.90554179]
[1755846484981,2.52391112,4325.8,4325.7,0.17154179]
[1755846485202,2.52391112,4325.8,4325.7,3.955]
[1755846485410,0.2122,4325.8,4325.7,3.955]
[1755846485623,2.52391112,4325.8,4325.7,3.955]
[1755846485787,0.2122,4325.8,4325.7,3.955]
[1755846486208,2.52391112,4325.8,4325.7,3.955]
[1755846486611,0.119,4325.8,4325.7,3.955]
[1755846486985,0.119,4325.8,4325.7,6.26676456]
[1755846487377,0.02,4325.8,4325.7,6.26676456]
[1755846487582,0.02,4325.8,4325.7,9.50904102]
[1755846487807,0.02,4325.8,4325.7,10.16904102]
[1755846488503,0.02,4325.8,4325.7,5.8472]
[1755846488504,0.119,4325.8,4325.7,5.8472]
[1755846488702,0.119,4325.8,4325.7,4.20496456]
[1755846488903,0.02,4325.8,4325.7,8.15796456]
[1755846489083,0.02,4325.8,4325.7,12.13416456]
[1755846489283,0.02,4325.8,4325.7,12.59626456]
[1755846489507,0.02,4325.8,4325.7,13.68103523]
[1755846493725,0.02,4325.8,4325.7,5.8422]
[1755846494017,0.021,4325.8,4325.7,8.03876456]
[1755846494394,0.02,4325.8,4325.7,8.03876456]
[1755846494594,0.1692,4325.8,4325.7,1.778]
[1755846494799,0.2128,4325.8,4325.7,5.726]
[1755846495388,2.52451112,4325.8,4325.7,1.778]
[1755846495695,0.2128,4325.8,4325.7,3.948]
[1755846495917,0.1692,4325.8,4325.7,3.948]
[1755846496337,0.1692,4325.8,4325.7,6.25976456]
[1755846496501,0.1692,4325.8,4325.3,0.17185429]
[1755846496502,0.2128,4325.8,4325.3,0.17185429]
[1755846496706,0.0436,4325.7,4325.4,3.949]
[1755846496906,0.1692,4325.8,4325.0,4.09013528]
[1755846496907,0.1481,4325.5,4325.0,4.09013528]
[1755846497150,0.1481,4325.5,4325.1,2.31207534]
[1755846497322,0.0447,4325.4,4325.1,6.26607534]
[1755846497523,0.0447,4325.4,4325.2,2.31202692]
[1755846497728,0.0932,4325.7,4325.3,3.954]
[1755846497928,0.1492,4325.4,4325.2,2.31202692]
[1755846498141,0.02,4325.8,4325.3,6.26496991]
[1755846498323,0.02,4325.8,4325.4,3.953]
[1755846498740,0.1481,4325.5,4325.4,6.26488773]
[1755846499339,0.1481,4325.5,4325.0,1.94882844]
[1755846499637,0.1481,4325.5,4325.1,3.952]
[1755846499808,0.1481,4325.5,4325.2,3.953]
[1755846500238,0.1481,4325.5,4325.3,3.953]
[1755846500425,0.1481,4325.5,4325.3,6.26497187]
[1755846500734,0.1481,4325.5,4325.4,2.3119249]
[1755846501143,0.02,4325.8,4325.5,2.31182949]
[1755846501349,0.02,4325.8,4325.6,3.952]
[1755846501551,0.1492,4325.7,4325.5,2.31182816]
[1755846501744,0.02,4325.8,4325.6,6.26281801]
[1755846502041,0.02,4325.8,4325.7,2.31176456]
[1755846502642,0.02,4325.8,4325.6,3.951]
[1755846503016,0.1481,4325.7,4325.2,0.116]
[1755846503212,0.1481,4325.7,4325.5,2.31182657]
[1755846503406,0.1481,4325.7,4325.2,0.116]
[1755846503407,0.1481,4325.7,4325.6,3.954]
[1755846503946,0.1481,4325.7,4325.6,6.26581801]
[1755846504444,0.1481,4325.7,4325.6,3.954]
[1755846504643,0.1481,4325.7,4325.6,6.26581801]
[1755846504939,0.1481,4325.7,4325.6,3.954]
[1755846505116,0.02,4325.8,4325.7,2.31176456]
[1755846505308,0.02,4325.8,4325.6,6.26580425]
[1755846505510,0.099,4325.7,4325.6,6.26581801]
[1755846505912,0.099,4325.7,4325.1,2.31208526]
[1755846506125,0.099,4325.7,4325.6,2.31181801]
[1755846506325,0.099,4325.7,4325.6,6.26381801]
[1755846506527,0.099,4325.7,4325.6,3.952]
[1755846506922,0.099,4325.7,4325.6,6.26381801]
[1755846507347,0.099,4325.7,4325.6,3.952]
[1755846507520,0.099,4325.7,4325.6,6.26381801]
[1755846507722,0.099,4325.7,4325.6,2.31181801]
[1755846507910,0.021,4325.8,4325.7,2.31176456]
[1755846508114,0.021,4325.8,4325.7,3.09006456]
[1755846508315,0.021,4325.8,4325.7,2.31176456]
[1755846508535,0.12,4325.8,4325.7,2.31176456]
[1755846509033,0.12,4325.8,4325.7,3.95]
[1755846509247,0.12,4325.8,4325.7,6.26176456]
[1755846510257,0.021,4325.8,4325.7,6.26176456]
[1755846510416,0.021,4325.8,4325.7,6.57796456]
[1755846510612,0.021,4325.8,4325.7,6.26176456]
[1755846510816,0.1194,4325.8,4325.7,6.26176456]
[1755846511317,0.021,4325.8,4325.7,2.31176456]
[1755846511628,0.021,4325.8,4325.7,6.25976456]
[1755846511827,0.021,4325.8,4325.7,7.03806456]
[1755846512352,0.021,4325.8,4325.7,6.25976456]
[1755846513840,0.1194,4325.8,4325.7,6.25976456]
[1755846514652,0.021,4325.8,4325.7,7.03806456]
[1755846516537,0.021,4325.8,4325.7,6.25976456]
[1755846516965,0.1195,4325.8,4325.7,6.25976456]
[1755846517126,0.021,4325.8,4325.7,6.25976456]
[1755846518169,0.021,4325.8,4325.7,7.02556456]
[1755846519343,0.0226,4325.8,4325.4,4.28999998]
[1755846519582,0.0226,4325.8,4325.7,2.31176456]
[1755846519952,0.0226,4325.8,4325.7,2.30920995]
[1755846520444,0.0226,4325.8,4325.7,3.941]
[1755846520645,0.0226,4325.8,4325.6,3.94]
[1755846520845,0.1149,4325.8,4325.6,3.94]
[1755846521273,0.1149,4325.8,4325.6,3.93818289]
[1755846521573,0.021,4325.8,4325.7,3.07756456]
[1755846525076,0.12,4325.8,4325.7,6.25176456]
[1755846525480,0.12,4325.8,4325.6,2.31177126]
[1755846525648,0.12,4325.8,4325.5,2.31186956]
[1755846525649,0.12,4325.8,4325.7,3.939]
[1755846525851,0.021,4325.8,4325.7,6.55265877]
[1755846526078,0.021,4325.8,4325.7,7.01395877]
[1755846531998,0.021,4325.8,4325.7,7.01656456]
[1755846532698,0.12,4325.8,4325.4,2.3119249]
[1755846532997,0.12,4325.8,4325.5,3.937]
[1755846533207,0.12,4325.8,4325.7,2.31176456]
[1755846533379,0.12,4325.8,4325.7,6.24976456]
[1755846533600,0.12,4325.8,4325.7,3.938]
[1755846533929,0.12,4325.8,4325.7,6.24976456]
[1755846534229,0.021,4325.8,4325.7,6.24976456]
[1755846535799,0.021,4325.8,4325.7,3.936]
[1755846535988,0.12,4325.8,4325.4,2.3119148]
[1755846536190,0.001,4326.3,4325.5,3.936]
[1755846536396,2.31149738,4326.2,4325.5,3.936]
[1755846536800,0.50100685,4326.3,4325.5,3.936]
[1755846536801,2.31156271,4326.1,4325.5,3.936]
[1755846537032,0.50000685,4326.2,4325.0,0.17082844]
[1755846537202,2.31196776,4325.4,4325.0,4.10582844]
[1755846537531,0.50000685,4326.0,4325.0,3.935]
[1755846537727,2.31184352,4325.6,4325.0,3.935]
[1755846538026,2.31171653,4325.8,4325.0,3.935]
[1755846538529,2.31187841,4325.5,4325.0,3.935]
[1755846539030,2.31187957,4325.5,4325.0,3.935]
[1755846539236,0.49963349,4325.6,4324.8,0.20276056]
[1755846539392,2.90250291,4326.1,4324.8,0.20276056]
[1755846539594,2.31187709,4325.5,4324.8,0.20276056]
[1755846540113,0.36191179,4326.0,4324.8,0.20276056]
[1755846540114,0.49963349,4325.6,4324.8,0.20276056]
[1755846540313,2.31180267,4325.7,4324.8,0.20276056]
[1755846540498,0.21685121,4325.6,4325.3,2.31196923]
[1755846540697,0.21685121,4325.6,4325.1,3.935]
[1755846541005,0.001,4325.8,4325.2,0.4613]
[1755846541191,2.31166407,4325.9,4325.2,2.77332615]
[1755846541192,2.76229756,4325.9,4325.2,2.77332615]
[1755846541396,0.49963349,4325.9,4325.2,2.77332615]
[1755846541616,0.36191179,4326.0,4325.2,2.77332615]
[1755846541790,0.36191179,4326.0,4325.2,2.31203181]
[1755846541995,0.36191179,4326.0,4325.4,2.31187805]
[1755846542198,0.36191179,4326.0,4325.5,3.935]
[1755846542431,2.67352551,4326.0,4325.5,4.3963]
[1755846542732,0.36191179,4326.0,4325.6,0.4613]
[1755846542893,0.36191179,4326.0,4325.7,0.4613]
[1755846543503,0.36191179,4326.0,4325.8,0.4613]
[1755846543702,0.36191179,4326.0,4325.9,0.3045]
[1755846543902,0.36191179,4326.0,4325.9,4.6998]
[1755846546997,0.36191179,4326.0,4325.9,7.01145768]
[1755846547202,0.001,4326.3,4326.0,2.31160425]
[1755846547397,0.001,4326.3,4326.2,0.3045]
[1755846547718,0.001,4326.3,4326.2,6.54799738]
[1755846548230,0.001,4326.3,4326.2,6.99959738]
[1755846551930,0.001,4326.3,4326.2,8.77759738]
[1755846552131,0.001,4326.3,4326.2,10.54192078]
[1755846552579,0.001,4326.3,4326.2,11.20192078]
[1755846553880,1e-08,4326.3,4326.2,14.20192078]
[1755846556880,1e-08,4326.3,4326.2,14.19492078]
[1755846559680,1e-08,4326.3,4326.2,10.26992078]
[1755846559834,1e-08,4326.3,4326.2,14.19192078]
[1755846562347,1e-08,4326.3,4326.2,14.28455778]
[1755846563040,1e-08,4326.3,4326.2,14.28255778]
[1755846563579,1e-08,4326.7,4326.6,2.97128368]
[1755846563881,1e-08,4326.8,4326.7,2.97123026]
[1755846564062,1e-08,4326.8,4326.7,3.26263026]
[1755846564266,1e-08,4326.8,4326.7,6.82943026]
[1755846564477,1e-08,4327.8,4327.7,2.97069621]
[1755846564647,1e-08,4327.8,4327.7,18.630336]
[1755846564848,0.02,4328.8,4328.7,2.9701624]
[1755846565045,0.02,4328.8,4328.7,9.0847624]
[1755846565245,0.02,4328.8,4328.7,9.5363624]
[1755846565758,0.01871137,4329.6,4329.5,2.96973553]
[1755846566080,0.01871137,4329.6,4329.5,15.63737532]
[1755846566391,0.01871137,4329.6,4329.5,20.97925475]
[1755846566552,0.01871137,4329.6,4329.5,10.49321496]
[1755846566878,0.01871137,4329.6,4329.5,20.98625475]
[1755846567669,1e-08,4329.6,4329.5,20.98625475]
[1755846568385,1e-08,4329.6,4329.5,29.24096766]
[1755846568751,1e-08,4329.6,4329.5,25.30196766]
[1755846568996,1e-08,4329.6,4329.5,29.23996766]
[1755846569148,1e-08,4329.6,4329.5,7.49321496]
[1755846569350,1e-08,4329.6,4329.5,5.923761]
[1755846569583,1e-08,4329.6,4329.5,5.924761]
[1755846569791,1e-08,4329.6,4329.5,0.207761]
[1755846569792,2.30968219,4329.6,4329.5,0.207761]
[1755846570081,1e-08,4329.6,4329.4,3.941]
[1755846570282,1e-08,4329.6,4329.4,3.942]
[1755846570765,1e-08,4329.6,4329.5,0.02309735]
[1755846571090,1e-08,4329.6,4329.2,0.1152]
[1755846571293,1e-08,4329.6,4328.8,1.777]
[1755846571656,2.3098179,4329.4,4328.9,3.946]
[1755846571858,1e-08,4329.6,4328.9,3.946]
[1755846572193,0.36160275,4329.6,4328.6,1.777]
[1755846572393,0.36160275,4329.6,4328.7,3.945]
[1755846572598,2.67128807,4329.6,4328.7,3.945]
[1755846572756,0.36160275,4329.6,4328.7,6.25515238]
[1755846572958,0.36160275,4329.6,4328.8,0.02310109]
[1755846573271,0.36160275,4329.6,4328.9,0.1152]
[1755846573478,0.36160275,4329.6,4329.1,2.3099369]
[1755846573687,1e-08,4329.6,4329.2,2.30989559]
[1755846573859,1e-08,4329.6,4329.4,2.30975467]
[1755846574061,1e-08,4329.6,4329.5,2.33283288]
[1755846574260,1e-08,4329.6,4329.3,6.25682787]
[1755846574593,1e-08,4329.6,4328.6,0.17016038]
[1755846574756,1e-08,4329.6,4328.7,4.18061145]
[1755846574981,1e-08,4329.6,4328.8,0.21461145]
[1755846575169,1e-08,4329.6,4328.9,0.21461145]
[1755846575370,1e-08,4329.6,4329.0,6.49157297]
[1755846575587,1e-08,4329.6,4329.1,2.52455495]
[1755846575806,1e-08,4329.6,4329.2,0.21461145]
[1755846575967,1e-08,4329.6,4329.3,3.967]
[1755846576374,1e-08,4329.6,4329.5,2.30973553]
[1755846576807,1e-08,4329.6,4329.5,2.52447484]
[1755846577322,1e-08,4329.6,4329.5,4.85507417]
[1755846577806,0.02,4329.8,4329.7,2.96962884]
[1755846578007,0.02,4329.8,4329.7,22.28035063]
[1755846578175,0.02,4329.8,4329.7,7.88450165]
[1755846578810,0.02,4329.8,4329.7,7.88350165]
[1755846579007,0.02,4329.8,4329.7,6.27764128]
[1755846579213,0.02,4329.8,4329.7,7.88250165]
[1755846579578,0.02,4329.8,4329.7,6.49520165]
[1755846580216,0.02,4329.8,4329.7,2.52420165]
[1755846580509,0.02,4329.8,4329.7,3.25550165]
[1755846580713,0.02,4329.8,4329.7,7.22550165]
[1755846581277,0.02,4329.8,4329.7,7.22450165]
[1755846581993,1e-08,4329.8,4329.7,8.18718287]
[1755846582193,1e-08,4329.8,4329.7,11.84718287]
[1755846582388,0.001,4330.7,4330.6,2.96914884]
[1755846582611,0.001,4330.7,4330.6,9.23502165]
[1755846582804,0.001,4330.7,4330.6,9.67102165]
[1755846583003,0.001,4330.7,4330.6,10.9615951]
[1755846583576,0.001,4330.7,4330.6,10.9635951]
[1755846583889,0.001,4330.7,4330.6,9.76557065]
[1755846584090,0.001,4330.7,4330.6,4.39327065]
[1755846584391,0.001,4330.7,4330.6,8.28372165]
[1755846584598,0.001,4330.7,4330.6,0.21457281]
[1755846584911,0.001,4330.7,4330.0,3.984]
[1755846585119,0.001,4330.7,4329.6,1.777]
[1755846585120,0.001,4330.7,4330.1,4.19856914]
[1755846585326,0.001,4330.7,4330.2,0.23766276]
[1755846585632,0.001,4330.7,4330.3,0.21457244]
[1755846585791,0.001,4330.7,4330.6,2.30914884]
[1755846586126,0.001,4330.7,4330.6,2.54681276]
[1755846586278,0.001,4330.7,4330.6,0.21457244]
[1755846586907,0.001,4330.7,4330.4,3.984]
[1755846587125,0.001,4330.7,4330.5,0.21451627]
[1755846587283,0.001,4330.7,4330.6,2.52366511]
[1755846587488,0.001,4330.7,4330.6,0.21451627]
[1755846587724,0.001,4330.7,4330.6,2.54675659]
[1755846588286,0.001,4330.7,4330.6,6.52975659]
[1755846588488,0.001,4330.7,4330.6,7.23796511]
[1755846588693,0.001,4330.7,4330.6,7.55624321]
[1755846589305,0.001,4330.7,4330.6,8.21624321]
[1755846590243,0.001,4330.7,4330.6,8.33140026]
[1755846591541,1e-08,4330.7,4330.6,4.34840026]
[1755846591727,1e-08,4330.8,4330.7,2.30909552]
[1755846591929,1e-08,4330.8,4330.7,9.27700847]
[1755846592742,1e-08,4330.8,4330.7,9.39220847]
[1755846592943,1e-08,4330.8,4330.7,13.37320847]
[1755846593553,1e-08,4330.8,4330.7,0.32967332]
[1755846594061,1e-08,4330.8,4330.7,0.21447332]
[1755846594267,1e-08,4330.8,4330.7,4.21847332]
[1755846594834,1e-08,4330.8,4330.7,4.21747332]
[1755846595033,2.30904221,4330.8,4330.7,4.21747332]
[1755846595232,1e-08,4330.8,4330.7,0.21447332]
[1755846596065,1e-08,4330.8,4330.6,4.002]
[1755846596276,1e-08,4330.8,4330.7,0.21481162]
[1755846596571,1e-08,4330.8,4329.8,4.002]
[1755846596728,2.30905046,4330.8,4329.9,0.21490955]
[1755846596930,2.30905046,4330.8,4329.7,4.003]
[1755846596931,2.30948181,4330.0,4329.7,4.003]
[1755846597160,2.30948181,4330.0,4329.8,0.21491139]
[1755846597366,2.30948181,4330.0,4329.1,4.08594383]
[1755846597367,2.30946882,4330.0,4329.9,0.21490469]
[1755846597661,5.30914884,4330.6,4328.8,0.031]
[1755846597852,2.31004982,4329.0,4328.8,0.031]
[1755846598050,2.470563,4330.0,4328.8,0.031]
[1755846598364,2.3095755,4329.8,4328.8,0.031]
[1755846598572,2.31000409,4329.0,4328.8,0.031]
[1755846598861,2.30996337,4329.1,4328.8,0.031]
[1755846599065,2.31000831,4329.0,4328.8,0.031]
[1755846599566,2.30989918,4329.2,4328.8,0.031]
[1755846599738,2.30995059,4329.1,4328.8,0.031]
[1755846599941,0.49677544,4329.7,4328.8,0.031]
[1755846600150,0.49677544,4329.8,4328.8,0.031]
[1755846600356,3.50095809,4329.8,4328.8,0.031]
[1755846600547,0.62486942,4329.4,4328.8,0.031]
[1755846600873,2.30984223,4329.3,4328.8,0.031]
[1755846601052,4.12164486,4329.5,4328.8,0.031]
[1755846601255,0.49677544,4329.4,4328.8,0.031]
[1755846601461,3.0,4329.5,4328.8,0.031]
[1755846601771,5.30984223,4329.3,4328.8,0.031]
[1755846601974,2.31005567,4328.9,4328.8,0.031]
[1755846602441,5.80644104,4328.9,4328.8,0.031]
[1755846602629,6.16811995,4328.9,4328.8,0.031]
[1755846603631,10.17311995,4328.9,4328.8,0.031]
[1755846603963,6.16811995,4328.9,4328.8,0.031]
[1755846604141,10.17311995,4328.9,4328.8,0.031]
[1755846604347,6.16811995,4328.9,4328.8,0.031]
[1755846604751,10.17211995,4328.9,4328.8,0.031]
[1755846606069,6.16811995,4328.9,4328.8,0.031]
[1755846606236,9.80844104,4328.9,4328.8,0.031]
[1755846606438,9.31205567,4328.9,4328.8,0.031]
[1755846606639,9.31205567,4328.9,4328.3,0.011]
[1755846606640,35.97010903,4328.8,4328.3,0.011]
[1755846606838,17.11907522,4328.4,4328.3,0.011]
[1755846607041,26.4082414,4328.4,4328.3,0.011]
[1755846607770,11.10432252,4328.4,4328.3,0.011]
[1755846609395,7.08732252,4328.4,4328.3,0.011]
[1755846609555,11.46608,4328.4,4328.3,0.011]
[1755846609761,2.31053604,4328.0,4327.9,0.011]
[1755846609997,17.11928874,4328.0,4327.9,0.011]
[1755846610157,20.11928874,4328.0,4327.9,0.011]
[1755846611893,24.23096374,4328.0,4327.9,0.011]
[1755846612195,5.31058943,4327.9,4327.8,0.02]
[1755846612972,9.68938928,4327.9,4327.8,0.02]
[1755846613194,9.68838928,4327.9,4327.8,0.02]
[1755846614189,9.68838928,4327.9,4326.0,0.4392]
[1755846614190,2.31112343,4326.9,4326.0,0.4392]
[1755846614400,9.32612343,4326.9,4326.0,0.4392]
[1755846614899,9.68796056,4326.9,4326.0,0.4392]
[1755846615294,9.68796056,4326.9,4325.8,0.02]
[1755846615501,9.68796056,4326.9,4326.2,0.4392]
[1755846615703,5.31112343,4326.9,4326.2,0.4392]
[1755846615996,9.32412343,4326.9,4325.8,0.02]
[1755846616393,2.31165768,4325.9,4325.8,0.02]
[1755846616593,9.32765768,4325.9,4325.8,0.02]
[1755846617276,24.13641038,4325.9,4325.8,0.02]
[1755846618072,24.13641038,4325.9,4323.8,0.02]
[1755846618073,2.31219218,4324.9,4324.1,0.4392]
[1755846618374,9.33219218,4324.9,4323.8,0.02]
[1755846618802,39.99219218,4324.9,4324.8,1e-08]
[1755846619704,2.31272693,4323.9,4323.8,0.02]
[1755846619908,25.92347963,4323.9,4323.8,0.02]
[1755846620204,25.92347963,4323.9,4322.8,0.02]
[1755846620205,2.31326193,4322.9,4322.8,0.02]
[1755846620411,9.34126193,4322.9,4322.8,0.02]
[1755846621003,5.31326193,4322.9,4322.8,0.02]
[1755846621200,9.70344481,4322.9,4322.8,0.02]
[1755846621605,9.70344481,4322.9,4322.8,0.01533169]
[1755846621803,3.36218288,4322.9,4322.8,0.01533169]
[1755846622004,7.38818288,4322.9,4322.8,0.76423169]
[1755846622166,7.38918288,4322.9,4322.8,0.76423169]
[1755846622367,3.36218288,4322.9,4322.8,0.76423169]
[1755846622572,9.70244481,4322.9,4322.8,0.45453169]
[1755846622801,7.38918288,4322.9,4322.8,0.01533169]
[1755846623114,7.38918288,4322.9,4322.8,0.76423169]
[1755846623279,3.36218288,4322.9,4322.8,0.76423169]
[1755846623475,0.36218288,4322.9,4322.8,0.76423169]
[1755846624277,0.36218288,4322.9,4322.8,3.07754713]
[1755846625424,1.778,4323.9,4322.8,3.07754713]
[1755846625425,4.026,4323.4,4322.8,1.30332575]
[1755846625593,1.778,4323.9,4322.9,0.46233261]
[1755846625915,1.778,4323.9,4323.8,0.3097]
[1755846626077,4.026,4324.0,4323.8,0.7489]
[1755846626275,4.026,4324.2,4323.9,0.4392]
[1755846626517,1.779,4324.7,4324.1,0.3097]
[1755846626690,4.025,4324.6,4324.1,0.3097]
[1755846627020,4.025,4324.5,4324.2,2.75175523]
[1755846627187,4.025,4324.6,4324.4,0.3097]
[1755846627383,4.025,4324.7,4324.4,0.3097]
[1755846627591,3.0,4324.6,4324.5,0.4392]
[1755846627813,1.779,4325.0,4324.6,0.3097]
[1755846628115,3.0,4324.8,4324.6,0.3097]
[1755846628318,3.0,4324.8,4324.6,0.7489]
[1755846628480,6.33628676,4324.8,4324.6,0.7489]
[1755846628681,3.0,4324.7,4324.6,0.3097]
[1755846629076,4.024,4324.8,4324.6,0.3097]
[1755846629320,3.36199227,4324.7,4324.6,0.7489]
[1755846629485,3.36199227,4324.7,4324.6,0.3097]
[1755846629486,5.67429138,4324.7,4324.6,0.3097]
[1755846629984,3.36199227,4324.7,4324.6,0.7489]
[1755846630409,5.67429138,4324.7,4324.6,0.7489]
[1755846630594,4.38199227,4324.7,4324.6,0.7489]
[1755846630799,9.69429138,4324.7,4324.6,0.7489]
[1755846631205,7.38199227,4324.7,4324.6,0.7489]
[1755846632386,9.69429138,4324.7,4324.6,0.7489]
[1755846633426,7.38199227,4324.7,4324.6,0.7489]
[1755846634282,0.36199227,4324.7,4324.6,0.7489]
[1755846634481,0.36199227,4324.7,4324.6,3.06125258]
[1755846638716,0.02,4325.8,4325.7,2.31176456]
[1755846638931,0.02,4325.8,4325.7,3.04856456]
[1755846639111,0.02,4325.8,4325.7,0.7368]
[1755846639310,0.02,4325.8,4325.7,3.04856456]
[1755846640425,0.021,4325.8,4325.7,0.7368]
[1755846640626,0.021,4325.8,4325.7,3.04856456]
[1755846643099,0.021,4325.8,4325.7,0.7368]
[1755846643300,0.021,4325.8,4325.7,3.04856456]
[1755846644235,0.021,4325.8,4325.7,3.58460728]
[1755846645627,0.021,4325.8,4325.7,3.04856456]
[1755846646950,0.021,4325.8,4325.7,3.70856456]
[1755846647154,0.001,4326.3,4326.2,2.31149738]
[1755846647339,0.001,4326.3,4326.2,7.29281235]
[1755846647521,1e-08,4326.3,4326.2,9.49729738]
[1755846647713,1e-08,4326.3,4326.2,10.67818404]
[1755846648158,1e-08,4326.7,4326.6,2.97128368]
[1755846648325,1e-08,4326.7,4326.6,3.25948368]
[1755846648670,1e-08,4326.7,4326.6,4.44834062]
[1755846648858,1e-08,4326.7,4326.6,4.42522779]
[1755846649333,1e-08,4326.7,4326.6,8.43422779]
[1755846652618,1e-08,4326.7,4326.6,4.42522779]
[1755846652822,1e-08,4326.7,4326.6,8.42822779]
[1755846653923,1e-08,4326.7,4326.6,3.76522779]
[1755846654130,1e-08,4326.7,4326.6,2.59948368]
[1755846654422,1e-08,4326.7,4326.6,6.60048368]
[1755846655460,1e-08,4326.7,4326.6,2.59948368]
[1755846655660,0.09890001,4326.7,4326.6,2.31128368]
[1755846655861,0.09890001,4326.7,4326.2,1.779]
[1755846656372,2.31133935,4326.5,4325.9,4.001]
[1755846656542,0.3537,4326.6,4326.0,2.31160106]
[1755846656736,0.1015,4326.1,4325.9,2.31164857]
[1755846656928,0.1015,4326.1,4325.7,4.0]
[1755846657146,0.1015,4326.1,4325.6,0.004]
[1755846658030,2.76416133,4326.1,4325.6,0.004]